[Event "AUT Bundesliga 2021-22"]
[Site "Graz"]
[Date "2022.04.21"]
[Round "9.2"]
[White "Atlas, Valery"]
[Black "Nisipeanu, Liviu-Dieter"]
[Result "1/2-1/2"]
[ECO "C11"]
[WhiteElo "2423"]
[BlackElo "2652"]
[Annotator "TA"]
[PlyCount "74"]
[EventDate "2021.01.17"]
[EventType "team-tourn"]
[EventCountry "AUT"]
[SourceTitle "playchess.com"]
[Source "ChessBase"]
[SourceQuality "1"]
[TimeControl "40/5400+30:1800+30"]

{[%evp 15,74,0,11,0,6,-3,-6,-27,4,14,19,-20,-26,-5,78,-48,-44,-43,0,0,0,0,0,0,0,0,16,-18,0,-31,51,-13,-14,-20,-19,-8,31,40,41,46,97,20,20,0,0,-55,-62,-67,-69,-74,-76,-82,-88,-80,0,0,0,0,0,0,0]} 1. e4 {[%emt 0:00:02]} e6 {[%emt 0:00:17]} 2. d4 {[%emt 0:00:09]} d5 {[%emt 0:00:04]} 3. Nc3 {[%emt 0:00:06]} Nf6 {[%emt 0:00:05]} 4. e5 {[%emt 0:00:06]} Nfd7 {[%emt 0:00:03]} 5. f4 {[%emt 0:00:09]} c5 {[%emt 0:00:17]} 6. Nce2 {[%emt 0:00:09]} Nc6 {[%emt 0:00:31]} 7. c3 {[%emt 0:00:08]} Be7 {[%emt 0:00:17]} 8. Nf3 {[%emt 0:00:17]} O-O {[%emt 0:00:15]} 9. a3 {[%emt 0:04:42] C11: French: Classical System: 4 e5 and 4 Bg5 dxe4.} a5 {[%emt 0:09:04]} 10. g3 {[%emt 0:02:29]} b5 {[%emt 0:02:05]} 11. Bh3 {[%emt 0:01:43] [#]} Qb6 $146 {[%emt 0:08:57]} ({Predecessor:} 11... Ba6 12. O-O b4 13. Rf2 bxc3 14. bxc3 cxd4 15. cxd4 g6 16. g4 f5 17. gxf5 exf5 {½-½ (52) Quesada Perez,Y (2565)-Csonka,B (2498) Chess.com INT 2021}) 12. O-O {[%emt 0:00:35]} Ba6 {[%emt 0:06:52]} 13. Rf2 {[%emt 0:03:48]} (13. Kh1 $5 {[%cal Rf4f5]}) 13... b4 {[%emt 0:07:38]} 14. f5 {[%emt 0:04:03]} bxc3 {[%emt 0:17:59]} (14... cxd4 $1 $11 {keeps the balance.} 15. cxd4 f6 16. exf6 Nxf6) 15. bxc3 {[%emt 0:01:09]} (15. fxe6 $16 {Nf4 is the strong threat.} cxd4 16. exd7) 15... cxd4 $15 {[%emt 0:00:14]} 16. cxd4 {[%emt 0:01:50]} f6 {[%emt 0:03:49][%cal Rd7e5] aiming for ...Ndxe5!} (16... Ncxe5 $5 17. Nxe5 Nxe5 18. dxe5 Bc5 $11) 17. Nf4 {[%emt 0:14:40]} fxe5 {[%emt 0:07:57]} 18. Nxe6 {[%emt 0:00:11]} e4 {[%emt 0:02:07]} 19. Ne1 {[%emt 0:01:27]} Rf7 {[%emt 0:02:01]} 20. Be3 {[%emt 0:09:30]} Rb8 {[%emt 0:08:19]} 21. Ng2 {[%emt 0:03:37]} Bc4 {[%emt 0:03:14]} 22. Bg4 {[%emt 0:18:58]} Qb3 {[%emt 0:01:10]} (22... Nf8 $15) 23. Bh5 {[%emt 0:04:22]} (23. Bf4 $14) 23... Qxd1+ {[%emt 0:00:31]} 24. Bxd1 {[%emt 0:03:35]} Nf8 {[%emt 0:00:38] Threatens to win with ...Nxe6.} 25. Ba4 {[%emt 0:06:04]} Rb6 {[%emt 0:01:30]} 26. Nc5 {[%emt 0:04:04]} Bf6 {[%emt 0:01:46]} 27. Rd1 {[%emt 0:01:05][%cal Oc5e4]} Rc7 {[%emt 0:05:26] [#]} ({Better is} 27... Be7 $14) 28. Nf4 {[%emt 0:05:25]} (28. Nxe4 $1 $16 dxe4 29. d5) 28... Nxd4 $11 {[%emt 0:02:21]} 29. Nce6 {[%emt 0:01:02]} (29. Nxe4 {looks sharper.} dxe4 30. Bxd4 Bxd4 31. Rxd4 Rb1+ 32. Kg2) 29... Rxe6 {[%emt 0:01:06]} (29... Nfxe6 $2 30. fxe6 Rxe6 31. Bxd4 Bxd4 32. Rxd4 $18 (32. Nxe6 Bxf2+ 33. Kxf2 e3+ 34. Kg1 Rf7 $16)) 30. fxe6 {[%emt 0:04:46]} (30. Bxd4 $11 Bxd4 31. fxe6 Bxf2+ 32. Kxf2) 30... Nfxe6 $15 {[%emt 0:00:54] Pair of Knights!} 31. Nxd5 {[%emt 0:00:43]} Bxd5 {[%emt 0:00:55]} 32. Rxf6 {[%emt 0:00:06][%mdl 64] Remove Defender} gxf6 {[%emt 0:02:07]} 33. Bxd4 {[%emt 0:00:07]} Nxd4 {[%emt 0:01:36]} 34. Rxd4 $11 {[%emt 0:00:04] KRB-KRB} Bb7 {[%emt 0:00:08]} ({Black should play} 34... Bf7 $17) 35. Kf2 {[%emt 0:01:24] The position is equal.} Kf7 {[%emt 0:01:44]} 36. Rd7+ $1 {[%emt 0:00:29]} Rxd7 {[%emt 0:00:05]} 37. Bxd7 {[%emt 0:00:03]} Ke7 {[%emt 0:02:09] Weighted Error Value: White=0.22 (precise) /Black=0.24 (precise)} 1/2-1/2

[Event "AUT Bundesliga 2021-22"]
[Site "Graz"]
[Date "2022.04.21"]
[Round "9.3"]
[White "Donchenko, Alexander"]
[Black "Baenziger, Fabian"]
[Result "1/2-1/2"]
[ECO "D12"]
[WhiteElo "2636"]
[BlackElo "2418"]
[Annotator "TA"]
[PlyCount "79"]
[EventDate "2021.01.17"]
[EventType "team-tourn"]
[EventCountry "AUT"]
[SourceTitle "playchess.com"]
[Source "ChessBase"]
[SourceQuality "1"]
[TimeControl "40/5400+30:1800+30"]

{[%evp 11,79,27,33,25,23,13,18,10,13,9,8,7,43,0,4,-20,0,0,8,0,19,0,86,87,100,103,78,96,83,62,114,116,118,120,129,99,105,105,96,87,95,24,24,19,29,0,0,0,0,0,0,0,0,0,0,0,0,0,1,0,0,0,0,0,0,0,0,0,0,0]} 1. d4 {[%emt 0:00:07]} d5 {[%emt 0:00:19]} 2. c4 {[%emt 0:00:09]} c6 {[%emt 0:00:21]} 3. Nf3 {[%emt 0:00:18]} Nf6 {[%emt 0:00:06]} 4. e3 {[%emt 0:00:15]} Bf5 {[%emt 0:00:40]} 5. Nc3 {[%emt 0:00:14]} e6 {[%emt 0:00:05]} 6. Nh4 {[%emt 0:00:12]} Bg6 {[%emt 0:01:10]} 7. Bd2 {[%emt 0:00:23] D12: Slav Defence: 3 Nf3 Nf6 4 e3 Bf5.} Nbd7 {[%emt 0:01:14]} 8. Be2 {[%emt 0:00:31] Prevents Bh5.} Bd6 {[%emt 0:00:28] 8...Be7 is not played anymore.} 9. Qb3 {[%emt 0:00:31]} Rb8 {[%emt 0:02:44]} 10. Nxg6 {[%emt 0:01:38]} hxg6 {[%emt 0:00:19]} 11. h4 {[%emt 0:02:09] [#]} dxc4 $146 {[%emt 0:14:10]} ({Predecessor:} 11... Be7 12. cxd5 cxd5 13. g4 b5 14. a3 Kf8 15. g5 Ne8 16. e4 dxe4 17. Nxe4 Nb6 {½-½ (46) Zemlyanov,S (2378)-Pivinsky,E (2503) ICCF email 2019}) 12. Bxc4 {[%emt 0:09:27]} b5 {[%emt 0:07:13]} 13. Be2 {[%emt 0:02:11]} a6 {[%emt 0:01:18]} 14. Qc2 {[%emt 0:10:02]} c5 {[%emt 0:16:01]} 15. a4 {[%emt 0:02:30][%cal Ra4b5]} cxd4 {[%emt 0:17:51]} 16. exd4 {[%emt 0:00:08][%cal Ra4b5]} Qc7 {[%emt 0:01:49]} (16... bxa4 $11 17. Rxa4 a5) 17. axb5 $16 {[%emt 0:17:15]} axb5 {[%emt 0:00:08] [#] Threatens to win with ...b4.} 18. Qd3 $1 {[%emt 0:01:50]} Bb4 {[%emt 0:09:05]} 19. Nxb5 {[%emt 0:01:19]} Bxd2+ {[%emt 0:00:23]} 20. Qxd2 {[%emt 0:00:23]} Qc6 {[%emt 0:00:05]} (20... Qd8 $14) 21. Qc3 {[%emt 0:06:18]} ({Much weaker is} 21. Qg5 $6 O-O $11) 21... Qxc3+ {[%emt 0:00:19]} (21... Qxg2 $2 {[#]} 22. Bf3 $1 Qxh1+ 23. Bxh1 $18) 22. bxc3 {[%emt 0:00:02]} e5 {[%emt 0:02:29]} 23. Rh3 {[%emt 0:04:06] And now dxe5 would win.} exd4 {[%emt 0:05:30]} 24. cxd4 {[%emt 0:01:45]} O-O {[%emt 0:00:18]} 25. Ra7 {[%emt 0:03:29]} Nb6 {[%emt 0:02:10]} 26. Re3 {[%emt 0:08:56]} (26. Rha3 $16) 26... Nbd5 $11 {[%emt 0:05:13]} 27. Re5 {[%emt 0:00:24]} Rfc8 {[%emt 0:00:42]} 28. Kd2 {[%emt 0:06:00]} Nb4 {[%emt 0:02:05] Pair of Knights! The position is equal.} 29. Rc7 {[%emt 0:15:41] Active counter play!} Rxc7 {[%emt 0:05:47]} 30. Nxc7 {[%emt 0:00:02]} Nc6 {[%emt 0:03:11][%csl LRd4,LRe5]} 31. Rb5 {[%emt 0:00:13]} Rd8 {[%emt 0:00:08]} 32. d5 {[%emt 0:01:08]} Nd4 {[%emt 0:01:21]} 33. Rb4 {[%emt 0:00:10]} Nxe2 {[%emt 0:00:19]} 34. Kxe2 {[%emt 0:00:03][%mdl 4096] Endgame KRN-KRN} Rd7 {[%emt 0:00:28]} 35. Rb8+ {[%emt 0:04:05]} Kh7 {[%emt 0:00:04]} 36. Nb5 {[%emt 0:00:19] Black must now prevent d6.} Rxd5 {[%emt 0:00:59]} 37. Nc3 {[%emt 0:01:04]} Re5+ {[%emt 0:00:49]} 38. Kd3 {[%emt 0:00:11]} g5 {[%emt 0:00:14]} 39. hxg5 {[%emt 0:00:26]} Rxg5 {[%emt 0:00:04]} 40. g3 {[%emt 0:00:00] Weighted Error Value: White=0.11 (very precise) /Black=0.09 (flawless)} 1/2-1/2

[Event "AUT Bundesliga 2021-22"]
[Site "Graz"]
[Date "2022.04.21"]
[Round "9.4"]
[White "Novkovic, Milan"]
[Black "Svane, Rasmus"]
[Result "0-1"]
[ECO "E54"]
[WhiteElo "2360"]
[BlackElo "2637"]
[Annotator "TA"]
[PlyCount "96"]
[EventDate "2021.01.17"]
[EventType "team-tourn"]
[EventCountry "AUT"]
[SourceTitle "playchess.com"]
[Source "ChessBase"]
[SourceQuality "1"]
[TimeControl "40/5400+30:1800+30"]

{[%evp 23,96,4,10,10,11,-38,-39,-39,-39,-36,-44,-34,-45,-34,-31,-70,-12,-16,-17,-70,-69,-50,12,11,11,16,11,-9,-9,-9,0,0,0,0,0,-429,0,0,0,0,0,0,0,0,0,0,0,0,0,-6,0,-84,0,-263,-221,-203,-203,-165,-8,-240,-146,-846,-754,-522,-167,-442,-206,-504,-469,-3050,-2733,-4631,-4631,-4631,-1207]} 1. d4 {[%emt 0:00:14]} Nf6 {[%emt 0:00:58]} 2. c4 {[%emt 0:00:19]} e6 {[%emt 0:00:13]} 3. Nc3 {[%emt 0:00:17]} Bb4 {[%emt 0:00:27]} 4. e3 {[%emt 0:00:59]} O-O {[%emt 0:00:46]} 5. Bd3 {[%emt 0:00:23]} d5 {[%emt 0:07:29]} 6. Nf3 {[%emt 0:00:20]} dxc4 {[%emt 0:02:39]} 7. Bxc4 {[%emt 0:00:13]} c5 {[%emt 0:00:09]} 8. O-O {[%emt 0:00:27]} cxd4 {[%emt 0:02:40]} 9. exd4 {[%emt 0:00:18]} b6 {[%emt 0:00:26]} 10. Bg5 {[%emt 0:13:09]} Bb7 {[%emt 0:01:10]} 11. Qe2 {[%emt 0:04:04]} Nbd7 {[%emt 0:10:51]} 12. Rac1 {[%emt 0:05:39]} Rc8 {[%emt 0:15:41]} 13. Ne5 {[%emt 0:08:01] E54: Nimzo-Indian: Rubinstein: Main Line: 7...dxc4 8 Bxc4.} h6 {[%emt 0:16:25]} 14. Bh4 {[%emt 0:11:11]} (14. Nxd7 $11 Qxd7 15. Bxf6 gxf6 16. d5) 14... Nxe5 $15 {[%emt 0:04:25]} 15. dxe5 {[%emt 0:03:51] [#] Black is slightly better.} Qd4 $1 {[%emt 0:00:22][%csl LRc4,LRh4]} 16. exf6 {[%emt 0:01:28][%cal Oc4e6]} (16. Ba6 Bxa6) 16... Rxc4 {[%emt 0:09:43]} 17. fxg7 {[%emt 0:03:29] [#]} Qxg7 {[%emt 0:01:16][%csl Gb7][%cal Rg7g2]} 18. Bg3 {[%emt 0:00:31]} Rfc8 {[%emt 0:00:23] [#]} 19. f3 $146 {[%emt 0:03:44]} ({Predecessor:} 19. Rfd1 Bxc3 20. Rxc3 Rxc3 21. bxc3 Bd5 22. h3 Rxc3 23. Kh2 Qg5 24. Rd4 h5 25. Rh4 {½-½ (72) Nikolaevsky,Y-Levin,M Kiev 1962}) 19... h5 {[%emt 0:05:08]} (19... Ba6 $15 20. Rcd1 Bxc3 21. bxc3 Qxc3) 20. Be5 $11 {[%emt 0:03:42]} Qg5 {[%emt 0:04:01]} 21. Rcd1 {[%emt 0:11:25]} (21. a3 $11 Bf8 22. Rcd1) 21... Ba6 $1 $15 {[%emt 0:02:51][%cal Rb4c3] A strong pair of Bishops.} 22. f4 {[%emt 0:05:15]} Qg4 {[%emt 0:02:35]} ({Black should play} 22... Qf5 $1 $15 23. Rfe1 f6) 23. Rf3 $11 {[%emt 0:15:14]} Rxc3 $1 {[%emt 0:01:18]} 24. Qxa6 {[%emt 0:01:25]} Rc1 {[%emt 0:01:41]} (24... Rc2 $2 25. Rg3 Rc1 26. Rxg4+ $18) 25. Qe2 $132 {[%emt 0:02:33][%mdl 2048] Rg3 is the strong threat. White is fighting back} R8c2 {[%emt 0:03:19]} 26. Qxc2 {[%emt 0:01:41]} Bc5+ {[%emt 0:02:19]} 27. Kf1 $1 {[%emt 0:02:14]} Rxc2 {[%emt 0:00:29] The board is on fire.} 28. Rd8+ {[%emt 0:00:08]} Kh7 $1 {[%emt 0:00:56]} 29. Rh8+ {[%emt 0:00:14]} Kg6 {[%emt 0:00:04]} 30. f5+ $1 {[%emt 0:00:36]} Qxf5 {[%emt 0:01:08]} 31. Rg8+ {[%emt 0:00:36]} Kh7 {[%emt 0:01:22]} 32. Rh8+ {[%emt 0:00:48]} Kg6 {[%emt 0:00:04]} 33. Rg8+ {[%emt 0:00:02]} Kh6 {[%emt 0:00:09]} 34. Rh8+ {[%emt 0:00:17]} Kg5 {[%emt 0:01:35] ( -> ...Rf2+)} 35. Rg8+ {[%emt 0:02:39]} Qg6 {[%emt 0:00:38]} 36. Rxg6+ {[%emt 0:00:31]} fxg6 {[%emt 0:01:45][%mdl 4096] Endgame KRB-KRB} 37. Rf7 {[%emt 0:00:30] [#]} (37. b4 $11) 37... Be3 {[%emt 0:01:00]} (37... h4 $1 $17 38. g3 h3) 38. Rxa7 $2 {[%emt 0:00:31][%mdl 8192]} (38. Bd6 $11) 38... Rf2+ {[%emt 0:00:14]} 39. Ke1 {[%emt 0:00:03][%cal Oh2h4]} Rxg2 {[%emt 0:00:08] aiming for ...Kf5.} 40. Rf7 {[%emt 0:00:00]} Kg4 {[%emt 0:00:00]} (40... Bc1 $19 41. Kf1 Rc2) 41. Rf6 $2 {[%emt 0:04:45]} (41. h3+ $1 $11 Kh4 42. Rf3) 41... g5 {[%emt 0:03:09] White must now prevent ...Bf4.} 42. Rxe6 $2 {[%emt 0:02:41][%mdl 8192] White does not recover from this.} (42. h3+ $17 Kh4 43. a4) 42... Kf5 $19 {[%emt 0:06:04]} 43. Re8 {[%emt 0:00:25]} Bc1 $2 {[%emt 0:04:59]} (43... Bf4 44. Bxf4 Kxf4) 44. Bc7 {[%emt 0:04:41]} (44. a4) 44... Rxb2 {[%emt 0:02:28]} (44... Bf4 $142 45. Rf8+ Ke4 46. Bxf4 gxf4) 45. a4 $2 {[%emt 0:01:08]} (45. Re2 Rxe2+ 46. Kxe2) 45... Bf4 {[%emt 0:06:00] Black is clearly winning.} 46. Bxf4 {[%emt 0:01:13]} (46. Rf8+ $142 Kg4 47. Bxf4 gxf4 48. h4) 46... Kxf4 {[%emt 0:02:33]} 47. Rb8 {[%emt 0:00:06]} Rxh2 {[%emt 0:01:24] Strongly threatening ...h4.} 48. Rxb6 {[%emt 0:00:04]} Ra2 {[%emt 0:00:16] Weighted Error Value: White=0.93/Black=0.44} 0-1

[Event "AUT Bundesliga 2021-22"]
[Site "Graz"]
[Date "2022.04.21"]
[Round "9.5"]
[White "Acs, Peter"]
[Black "Mundorf, Johannes"]
[Result "1-0"]
[ECO "C02"]
[WhiteElo "2591"]
[BlackElo "2253"]
[Annotator "TA"]
[PlyCount "51"]
[EventDate "2021.01.17"]
[EventType "team-tourn"]
[EventCountry "AUT"]
[SourceTitle "playchess.com"]
[Source "ChessBase"]
[SourceQuality "1"]
[TimeControl "40/5400+30:1800+30"]

{[%evp 16,51,24,25,45,45,66,50,76,56,139,89,146,126,229,223,236,237,289,302,272,261,250,118,366,360,349,315,750,720,761,760,754,723,724,734,718,683]} 1. e4 {[%emt 0:00:12]} e6 {[%emt 0:00:07]} 2. d4 {[%emt 0:00:12]} d5 {[%emt 0:00:04]} 3. e5 {[%emt 0:00:28]} c5 {[%emt 0:00:12]} 4. c3 {[%emt 0:00:10]} Nc6 {[%emt 0:00:31]} 5. Nf3 {[%emt 0:00:14]} Bd7 {[%emt 0:01:34]} 6. Be2 {[%emt 0:00:47]} Nge7 {[%emt 0:01:10]} 7. O-O {[%emt 0:01:24]} cxd4 {[%emt 0:12:02]} 8. cxd4 {[%emt 0:00:13]} Qb6 {[%emt 0:04:45]} 9. Nc3 {[%emt 0:02:20]} Na5 {[%emt 0:06:01] C02: French: Advance Variation.} 10. Bd3 {[%emt 0:14:04]} Rc8 {[%emt 0:19:37]} 11. Re1 {[%emt 0:02:14]} Ng6 {[%emt 0:09:48] White is slightly better.} 12. h4 {[%emt 0:16:14]} Bb4 {[%emt 0:01:53] [#]} (12... h6 $14) 13. Rb1 $146 {[%emt 0:02:58]} (13. h5 $142) ({Predecessor:} 13. Bd2 Nxh4 14. Nxh4 Qxd4 15. Bg5 Bxc3 16. Nf3 Qb6 17. bxc3 Rxc3 18. Qe2 Nc6 19. Rab1 {0-1 (54) Wengler,J (1995)-Mayr,F (1990) Bayern 1999}) 13... Nc4 {[%emt 0:12:38]} ({Black should play} 13... Ne7) 14. a3 {[%emt 0:14:56]} Bxc3 {[%emt 0:04:48]} (14... Be7 $16) 15. bxc3 $18 {[%emt 0:00:18]} Qa5 {[%emt 0:04:46]} 16. Rxb7 {[%emt 0:03:26]} Nb6 {[%emt 0:03:21]} 17. h5 {[%emt 0:01:40]} Ne7 {[%emt 0:00:44]} 18. h6 {[%emt 0:04:55]} gxh6 {[%emt 0:01:12]} 19. Qd2 {[%emt 0:01:11]} (19. Bxh6 $18 {And now Ng5 would win.} Bc6 {[#]} 20. Rxe7+ $1 Kxe7 21. Ng5 Qxc3 22. Re3) 19... Ng8 $2 {[%emt 0:08:20]} (19... Bc6 $16 20. Rxe7+ Kxe7) 20. Qf4 {[%emt 0:02:49]} Qxc3 {[%emt 0:00:04]} 21. Bb5 {[%emt 0:03:40] Bd2 is the strong threat.} Ne7 $2 {[%emt 0:04:47]} (21... Rc7) 22. Bd2 {[%emt 0:03:50] White is clearly winning.} Qxa3 {[%emt 0:00:02] [#]} 23. Bb4 $1 {[%emt 0:01:16][%mdl 512]} Qxb4 {[%emt 0:01:58]} 24. Bxd7+ {[%emt 0:00:22][%mdl 64] Pin} Kd8 {[%emt 0:00:20]} 25. Bxc8 {[%emt 0:01:56]} Kxc8 {[%emt 0:00:13]} 26. Rxa7 {[%emt 0:00:25] Black got outplayed after the opening.  Weighted Error Value: White=0.23 (precise) /Black=0.50} 1-0

[Event "AUT Bundesliga 2021-22"]
[Site "Graz"]
[Date "2022.04.21"]
[Round "9.6"]
[White "Atlas, Dmitry"]
[Black "Boensch, Uwe"]
[Result "1/2-1/2"]
[ECO "B22"]
[WhiteElo "2232"]
[BlackElo "2494"]
[Annotator "TA"]
[PlyCount "61"]
[EventDate "2021.01.17"]
[EventType "team-tourn"]
[EventCountry "AUT"]
[SourceTitle "playchess.com"]
[Source "ChessBase"]
[SourceQuality "1"]
[TimeControl "40/5400+30:1800+30"]

{[%evp 19,61,3,9,0,12,0,8,0,3,3,22,17,32,22,50,37,78,19,21,17,18,6,12,-7,-4,-4,-4,-13,-11,-10,0,-5,-7,-29,-29,-25,-30,-26,0,0,0,0,7,8]} 1. e4 {[%emt 0:00:07]} c5 {[%emt 0:00:07]} 2. c3 {[%emt 0:00:07]} d5 {[%emt 0:00:11]} 3. exd5 {[%emt 0:00:07]} Qxd5 {[%emt 0:00:03]} 4. d4 {[%emt 0:00:09]} e6 {[%emt 0:00:27]} 5. Nf3 {[%emt 0:00:37]} Nf6 {[%emt 0:00:16]} 6. Be2 {[%emt 0:01:30]} Nc6 {[%emt 0:02:22]} 7. O-O {[%emt 0:00:36]} cxd4 {[%emt 0:01:19]} 8. cxd4 {[%emt 0:00:21]} Be7 {[%emt 0:00:17]} 9. Nc3 {[%emt 0:00:30]} Qd6 {[%emt 0:00:11]} 10. Be3 {[%emt 0:02:36]} O-O {[%emt 0:00:12]} 11. Qb3 {[%emt 0:00:26] [#] B22: Sicilian: 2 c3.} Nd5 $146 {[%emt 0:02:08]} ({Predecessor:} 11... b6 12. Rfd1 Bb7 13. Bg5 Rfd8 14. Bh4 Qb4 15. Qxb4 Nxb4 16. Rac1 Rac8 17. Ne5 Kf8 18. a3 Nbd5 19. Nxd5 Nxd5 {0-1 (57) Shkapenko,P (2421)-Panarin,M (2555) St Petersburg 2014}) 12. Nxd5 {[%emt 0:08:36]} exd5 {[%emt 0:00:09]} 13. Rfd1 {[%emt 0:05:37][%cal Of3e5]} Rd8 {[%emt 0:16:11]} 14. Rac1 {[%emt 0:13:30]} Bd7 {[%emt 0:09:23]} 15. Ne5 {[%emt 0:04:37]} Be8 {[%emt 0:01:21]} 16. Bf4 {[%emt 0:03:26] [#] Threatens to win with Nxc6.} Qf6 {[%emt 0:21:42]} 17. Qg3 {[%emt 0:08:52]} ({Much weaker is} 17. Qxb7 {[#]} Rab8 $1 18. Qa6 Rb6 19. Nxc6 Rxa6 20. Nxe7+ Kf8 $15) 17... Qh4 {[%emt 0:02:44]} 18. Nxc6 {[%emt 0:10:58] 0x0.002ceff46a05dp-1022s more active pieces.} (18. Qe3 $16) 18... Bxc6 $11 {[%emt 0:03:35]} 19. Qxh4 {[%emt 0:01:35]} Bxh4 {[%emt 0:00:02]} 20. b4 {[%emt 0:00:45]} a6 {[%emt 0:05:19] Inhibits b5.} 21. Bc7 {[%emt 0:09:22]} Re8 {[%emt 0:01:48]} 22. Bf3 {[%emt 0:01:58]} Bg5 {[%emt 0:03:30][%cal Bh4g5,Bg5d2,Bd2b4][%mdl 32]} 23. Ra1 {[%emt 0:07:28]} Ba4 {[%emt 0:02:57]} 24. Re1 {[%emt 0:03:04]} Rxe1+ {[%emt 0:04:58]} 25. Rxe1 {[%emt 0:00:02]} Bd2 {[%emt 0:00:07][%csl LRb4,LRe1]} 26. Re2 {[%emt 0:06:28]} Bxb4 {[%emt 0:02:22] ...Rc8 is the strong threat.} 27. Bxd5 {[%emt 0:00:38]} Rc8 {[%emt 0:10:36]} 28. Bf4 {[%emt 0:00:05]} Rd8 {[%emt 0:01:07]} (28... Bd6 $5 {[%cal Rd6f4]} 29. Be3 (29. Bxb7 $2 Rc7 $19) 29... Rc7 $11) 29. Bxb7 {[%emt 0:02:11] The position is equal.} Rxd4 {[%emt 0:00:55] ( -> ...Rd1+)} 30. g3 {[%emt 0:00:13]} Bb5 {[%emt 0:02:09]} 31. Rc2 {[%emt 0:00:40] Weighted Error Value: White=0.11 (very precise) /Black=0.07 (flawless)} 1/2-1/2

[Event "AUT Bundesliga 2021-22"]
[Site "Graz"]
[Date "2022.04.21"]
[Round "9.7"]
[White "Dragnev, Valentin"]
[Black "Berkes, Ferenc"]
[Result "1-0"]
[ECO "C88"]
[WhiteElo "2533"]
[BlackElo "2660"]
[Annotator "TA"]
[PlyCount "89"]
[EventDate "2021.01.17"]
[EventType "team-tourn"]
[EventCountry "AUT"]
[SourceTitle "playchess.com"]
[Source "ChessBase"]
[SourceQuality "1"]
[TimeControl "40/5400+30:1800+30"]

{[%evp 18,89,31,25,22,0,0,0,0,0,0,0,0,0,0,0,0,0,0,0,0,0,0,-13,-8,-26,-28,-20,-26,-62,0,0,0,0,0,0,25,0,0,0,41,32,43,45,71,0,0,0,0,0,178,179,714,697,746,447,740,686,6383,6383,29968,29971,6199,829,1252,0,5606,5610,5389,5465,1805,1951,29990,29987]} 1. e4 {[%emt 0:00:03]} e5 {[%emt 0:00:06]} 2. Nf3 {[%emt 0:00:06]} Nc6 {[%emt 0:00:08]} 3. Bb5 {[%emt 0:00:11]} a6 {[%emt 0:00:11]} 4. Ba4 {[%emt 0:00:05]} Nf6 {[%emt 0:00:10]} 5. O-O {[%emt 0:00:09]} Be7 {[%emt 0:00:15]} 6. Re1 {[%emt 0:00:11]} b5 {[%emt 0:00:10]} 7. Bb3 {[%emt 0:00:02]} O-O {[%emt 0:00:21]} 8. a4 {[%emt 0:00:38]} Bb7 {[%emt 0:00:35]} 9. d3 {[%emt 0:00:36]} d6 {[%emt 0:00:22]} 10. Nbd2 {[%emt 0:00:26][%cal Bb1d2,Bd2f1,Bf1g3,Bg3f5][%mdl 32]} Nd7 {[%emt 0:01:25] is recently more successful than 10...Na5. C88: Closed Ruy Lopez: Anti-Marshall Systems.} 11. Nf1 {[%emt 0:01:05]} Nc5 {[%emt 0:01:06]} 12. axb5 {[%emt 0:00:13]} axb5 {[%emt 0:00:07] The position is equal.} 13. Rxa8 {[%emt 0:00:07]} Qxa8 {[%emt 0:00:16]} 14. Bd5 {[%emt 0:00:08]} Nd8 {[%emt 0:00:19]} 15. Bxb7 {[%emt 0:00:49]} Qxb7 {[%emt 0:00:08]} 16. Ng3 {[%emt 0:00:50]} Nde6 {[%emt 0:00:44]} 17. Nf5 {[%emt 0:01:20]} Bf6 {[%emt 0:01:33]} 18. h4 {[%emt 0:00:28]} b4 {[%emt 0:11:54]} 19. b3 {[%emt 0:00:33] [#]} Ra8 $146 {[%emt 0:00:54]} ({Predecessor:} 19... g6 20. Nh6+ Kh8 21. Ng5 c6 22. Qf3 Qe7 23. Be3 Bxg5 24. hxg5 Nd4 25. Bxd4 exd4 {0-1 (74) Blohberger,F (2504)-Svane,R (2637) Terme Catez 2022}) 20. Nh2 {[%emt 0:27:52]} Ra1 {[%emt 0:11:28]} 21. Qf3 {[%emt 0:14:06]} Nd7 {[%emt 0:02:18]} 22. Ng4 {[%emt 0:01:20]} Qa8 {[%emt 0:18:18]} 23. Kh2 {[%emt 0:16:26]} h5 {[%emt 0:09:33]} (23... Qd8 $15) 24. Ngh6+ $1 $11 {[%emt 0:07:32]} gxh6 {[%emt 0:03:20]} 25. Nxh6+ {[%emt 0:02:18]} Kf8 {[%emt 0:00:09]} 26. Qxh5 {[%emt 0:00:20][%csl Gh6][%cal Rh5f7]} Nd8 {[%emt 0:00:26]} 27. Qg4 {[%emt 0:01:58][%mdl 1024] White threatens Qg8+ and mate. White has compensation.} (27. Qf5 $5 {[%cal Rf5d7]} Qc6 28. Ng4 $11) 27... Ke8 {[%emt 0:01:00] Threatens to win with ...Qa2.} 28. h5 {[%emt 0:02:23] aiming for Rg1.} Qc6 {[%emt 0:10:27]} 29. Qg8+ {[%emt 0:02:27]} Nf8 {[%emt 0:00:06]} 30. Ng4 {[%emt 0:00:14]} Be7 {[%emt 0:00:38]} 31. h6 {[%emt 0:04:47] &Bianco is more active.} ({White should try} 31. Ne3 $1 $16) 31... Kd7 {[%emt 0:00:24]} (31... Qxc2 $2 32. h7 $1 Rxc1 33. h8=Q $1 $18 {[%mdl 512]}) 32. Ne3 {[%emt 0:11:06] Hoping for h7.} d5 $1 {[%emt 0:00:58]} 33. Ng4 {[%emt 0:00:03]} Kc8 $2 {[%emt 0:06:04]} (33... Qxc2 $11 34. h7 Nxh7 $1 {[%mdl 512]} 35. Qxh7 Rxc1) 34. Bg5 $1 $18 {[%emt 0:01:25][%mdl 64] Discovered Attack} Rxe1 $2 {[%emt 0:12:11]} (34... Bxg5 35. Rxa1 Bxh6) 35. Bxe7 {[%emt 0:00:08]} Ng6 {[%emt 0:01:14]} 36. Qxd8+ {[%emt 0:01:58]} Kb7 {[%emt 0:00:04]} 37. h7 {[%emt 0:00:37][%cal Og4e5] Strongly threatening Nxe5!} Qxc2 {[%emt 0:06:48]} 38. Qxd5+ {[%emt 0:00:40]} Kb8 {[%emt 0:00:11]} 39. Qb5+ {[%emt 0:02:30]} Kc8 {[%emt 0:00:56] [#]} 40. Qe8+ {[%emt 0:00:00]} (40. Nxe5 $142 $1 Rh1+ 41. Kxh1 Qd1+ 42. Kh2 Qh5+ 43. Kg1 Qd1+ 44. Kh2 Qh5+ 45. Bh4 $1 {[%mdl 512]} Qxh4+ 46. Kg1 Nxe5 47. Qe8+ Kb7 48. h8=Q Qxh8 49. Qxh8) 40... Kb7 {[%emt 0:00:00] [#]} 41. Qb5+ $40 {[%emt 0:09:34][%mdl 128] Black needs to defend precisely.} (41. Nxe5 $142 $1 {[%mdl 512]} Rh1+ 42. Kxh1 Qc1+ 43. Kh2 Qf4+ 44. g3 Qxf2+ 45. Kh3 Qf1+ 46. Kg4 Nxe5+ 47. Kg5 Qc1+ 48. Kh5 Qd1+ 49. Kh6 Qd2+ 50. Kg7 Qxd3 51. Bh4) 41... Kc8 {[%emt 0:00:38]} 42. Qa6+ {[%emt 0:01:42]} Kd7 {[%emt 0:00:20]} 43. Bxb4 {[%emt 0:06:17] White wants to mate with Nf6+.} Rh1+ {[%emt 0:02:39]} 44. Kg3 {[%emt 0:00:34] Threatening mate with Nf6+.} c5 {[%emt 0:03:54]} 45. Qb7+ {[%emt 0:00:48] Weighted Error Value: White=0.30/Black=0.54} 1-0